[Event "*** Qualifier 1: Titled Tuesday 3|2 Blitz"]
[Site "Chess.com"]
[Date "2017.04.04"]
[Round "3"]
[White "geeeeri"]
[Black "StoreySniper"]
[Result "1/2-1/2"]
[WhiteElo "2299"]
[BlackElo "2225"]
[TimeControl "180+2"]
[EndTime "13:42:33 PDT"]
[Termination "Game drawn by repetition"]

1. e4 {[%clk 0:03:02]} 1... g6 {[%clk 0:03:00.2]} 2. d4 {[%clk 0:03:02.3]} 2...
Bg7 {[%clk 0:03:01.6]} 3. Be3 {[%clk 0:03:03.7]} 3... c5 {[%clk 0:03:02.2]} 4.
c3 {[%clk 0:03:02.4]} 4... cxd4 {[%clk 0:03:01.5]} 5. cxd4 {[%clk 0:03:03.3]}
5... Nf6 {[%clk 0:03:00.3]} 6. Nc3 {[%clk 0:03:03.4]} 6... d5 {[%clk 0:02:59]}
7. e5 {[%clk 0:03:02.9]} 7... Ng4 {[%clk 0:02:55.3]} 8. Bb5+ {[%clk 0:02:54.4]}
8... Nc6 {[%clk 0:02:55.6]} 9. Bf4 {[%clk 0:02:37.7]} 9... Nh6 {[%clk
0:02:49.7]} 10. Qd2 {[%clk 0:02:35.9]} 10... Nf5 {[%clk 0:02:36.6]} 11. Nf3
{[%clk 0:02:37.1]} 11... e6 {[%clk 0:02:31.1]} 12. O-O {[%clk 0:02:20.2]} 12...
Bd7 {[%clk 0:02:21.4]} 13. Rfd1 {[%clk 0:02:06.3]} 13... h6 {[%clk 0:01:51.4]}
14. Bxc6 {[%clk 0:01:41.4]} 14... Bxc6 {[%clk 0:01:51.6]} 15. b4 {[%clk
0:01:41.9]} 15... b5 {[%clk 0:01:20.5]} 16. a4 {[%clk 0:01:41.2]} 16... a6
{[%clk 0:01:20]} 17. axb5 {[%clk 0:01:33.9]} 17... axb5 {[%clk 0:01:20.9]} 18.
Qd3 {[%clk 0:01:35.3]} 18... Rxa1 {[%clk 0:01:14]} 19. Rxa1 {[%clk 0:01:37.2]}
19... Qb6 {[%clk 0:01:12.4]} 20. g4 {[%clk 0:01:35.2]} 20... Ne7 {[%clk
0:01:01.3]} 21. Ra5 {[%clk 0:01:34.6]} 21... h5 {[%clk 0:00:53.4]} 22. g5 {[%clk
0:01:09.6]} 22... O-O {[%clk 0:00:47.9]} 23. Nd2 {[%clk 0:01:03.6]} 23... Nf5
{[%clk 0:00:45.8]} 24. Nb3 {[%clk 0:01:02.9]} 24... Rb8 {[%clk 0:00:34.3]} 25.
Nc5 {[%clk 0:01:00.6]} 25... Bf8 {[%clk 0:00:35.3]} 26. Be3 {[%clk 0:00:50]}
26... Be7 {[%clk 0:00:33.7]} 27. Bd2 {[%clk 0:00:45.3]} 27... Qd8 {[%clk
0:00:29.2]} 28. f4 {[%clk 0:00:39.8]} 28... Qb6 {[%clk 0:00:24.1]} 29. Ne2
{[%clk 0:00:40.2]} 29... Ra8 {[%clk 0:00:20.3]} 30. Qa3 {[%clk 0:00:40.4]} 30...
Rxa5 {[%clk 0:00:19.9]} 31. bxa5 {[%clk 0:00:39.6]} 31... Qa6 {[%clk 0:00:13.1]}
32. Bb4 {[%clk 0:00:41.2]} 32... Qa7 {[%clk 0:00:13.3]} 33. Kf2 {[%clk
0:00:42.8]} 33... h4 {[%clk 0:00:10]} 34. Ke1 {[%clk 0:00:41.8]} 34... Bb7
{[%clk 0:00:09.2]} 35. Kd2 {[%clk 0:00:43.3]} 35... Bc6 {[%clk 0:00:08.8]} 36.
Kd3 {[%clk 0:00:44.6]} 36... Kg7 {[%clk 0:00:09.7]} 37. Qc3 {[%clk 0:00:41.9]}
37... Qa8 {[%clk 0:00:10.3]} 38. a6 {[%clk 0:00:39.9]} 38... Bd8 {[%clk
0:00:10.1]} 39. Ba5 {[%clk 0:00:39.9]} 39... Bxa5 {[%clk 0:00:08.9]} 40. Qxa5
{[%clk 0:00:41.8]} 40... Qh8 {[%clk 0:00:08.4]} 41. Qc7 {[%clk 0:00:31.8]} 41...
Qh5 {[%clk 0:00:09.6]} 42. Qxc6 {[%clk 0:00:32.6]} 42... Qf3+ {[%clk 0:00:10.6]}
43. Kd2 {[%clk 0:00:33.6]} 43... Qe3+ {[%clk 0:00:11.4]} 44. Kd1 {[%clk
0:00:31]} 44... Qxe2+ {[%clk 0:00:07.2]} 45. Kxe2 {[%clk 0:00:30.8]} 45... Nxd4+
{[%clk 0:00:08.7]} 46. Kd3 {[%clk 0:00:31.8]} 46... Nxc6 {[%clk 0:00:10.6]} 47.
Nd7 {[%clk 0:00:28.6]} 47... h3 {[%clk 0:00:06.3]} 48. Kc3 {[%clk 0:00:28.3]}
48... d4+ {[%clk 0:00:03.9]} 49. Kb3 {[%clk 0:00:27.7]} 49... Kg8 {[%clk
0:00:05]} 50. Ka3 {[%clk 0:00:21.6]} 50... Kg7 {[%clk 0:00:06.1]} 51. Kb3 {[%clk
0:00:23]} 51... Kg8 {[%clk 0:00:07.5]} 52. Ka3 {[%clk 0:00:18.5]} 52... Kg7
{[%clk 0:00:08.8]} 53. Kb3 {[%clk 0:00:19.9]} 53... Kg8 {[%clk 0:00:10.1]} 54.
Kb2 {[%clk 0:00:17]} 54... Kg7 {[%clk 0:00:11.3]} 55. Kc1 {[%clk 0:00:18.4]}
55... Kg8 {[%clk 0:00:12.8]} 56. Kd2 {[%clk 0:00:19.9]} 56... Kg7 {[%clk
0:00:13.6]} 57. Kd3 {[%clk 0:00:21.3]} 57... Nb4+ {[%clk 0:00:14.1]} 58. Kxd4
{[%clk 0:00:23.2]} 58... Nxa6 {[%clk 0:00:16]} 59. Kc3 {[%clk 0:00:24.4]} 59...
Nc7 {[%clk 0:00:16.9]} 60. Nf6 {[%clk 0:00:21]} 60... Na6 {[%clk 0:00:14]} 61.
Kd4 {[%clk 0:00:20]} 61... b4 {[%clk 0:00:12.8]} 62. Ng4 {[%clk 0:00:19.8]}
62... b3 {[%clk 0:00:13.5]} 63. Kc3 {[%clk 0:00:20.7]} 63... Nc5 {[%clk
0:00:13.8]} 64. Nf2 {[%clk 0:00:22.3]} 64... Kf8 {[%clk 0:00:08.2]} 65. Nxh3
{[%clk 0:00:23.5]} 65... b2 {[%clk 0:00:09.6]} 66. Kxb2 {[%clk 0:00:23.6]} 66...
Nd3+ {[%clk 0:00:09.7]} 67. Kc3 {[%clk 0:00:25.5]} 67... Ne1 {[%clk 0:00:10.4]}
68. Nf2 {[%clk 0:00:24.7]} 68... Ng2 {[%clk 0:00:11.6]} 69. Nd3 {[%clk
0:00:24.8]} 69... Ke7 {[%clk 0:00:10.9]} 70. Kd4 {[%clk 0:00:26.2]} 70... Kd7
{[%clk 0:00:12.3]} 71. Ke4 {[%clk 0:00:27.9]} 71... Nh4 {[%clk 0:00:13.2]} 72.
Ne1 {[%clk 0:00:26.7]} 72... Nf5 {[%clk 0:00:14.6]} 73. Nf3 {[%clk 0:00:27.3]}
73... Ng7 {[%clk 0:00:13.8]} 74. Nd4 {[%clk 0:00:27.8]} 74... Ke7 {[%clk
0:00:14.8]} 75. h3 {[%clk 0:00:26.8]} 75... Nh5 {[%clk 0:00:14.7]} 76. Ne2
{[%clk 0:00:27.7]} 76... Ng7 {[%clk 0:00:15.1]} 77. Ng3 {[%clk 0:00:28.3]} 77...
Ne8 {[%clk 0:00:15.3]} 78. h4 {[%clk 0:00:28.9]} 78... Ng7 {[%clk 0:00:16.5]}
79. Kd4 {[%clk 0:00:30.3]} 79... Kd7 {[%clk 0:00:17.5]} 80. Kc5 {[%clk
0:00:31.5]} 80... Kc7 {[%clk 0:00:18.3]} 81. Kb5 {[%clk 0:00:32.9]} 81... Kb7
{[%clk 0:00:17.8]} 82. Kc5 {[%clk 0:00:33.3]} 82... Kc7 {[%clk 0:00:18.7]} 83.
Kd4 {[%clk 0:00:33.9]} 83... Kc6 {[%clk 0:00:19.1]} 84. Kc4 {[%clk 0:00:35.4]}
84... Kb6 {[%clk 0:00:19]} 85. Kb4 {[%clk 0:00:26.4]} 85... Kc6 {[%clk
0:00:19.7]} 86. Kc4 {[%clk 0:00:27.9]} 86... Kb6 {[%clk 0:00:20.6]} 87. Kd4
{[%clk 0:00:28.4]} 87... Kc6 {[%clk 0:00:21.6]} 88. Ke4 {[%clk 0:00:29.7]} 88...
Kc5 {[%clk 0:00:19.9]} 89. Kf3 {[%clk 0:00:30.9]} 89... Kd4 {[%clk 0:00:20]} 90.
Kg4 {[%clk 0:00:32.8]} 90... Ke3 {[%clk 0:00:18.4]} 91. Nf1+ {[%clk 0:00:27.1]}
91... Ke2 {[%clk 0:00:18.4]} 92. Ng3+ {[%clk 0:00:29]} 92... Ke3 {[%clk
0:00:19.4]} 93. Nf1+ {[%clk 0:00:28.9]} 93... Ke2 {[%clk 0:00:20.5]} 94. Nh2
{[%clk 0:00:24.7]} 94... Ke3 {[%clk 0:00:13]} 95. Nf1+ {[%clk 0:00:16.9]} 95...
Ke2 {[%clk 0:00:12.7]} 96. Ng3+ {[%clk 0:00:16.3]} 96... Ke3 {[%clk 0:00:14.1]}
97. Nf1+ {[%clk 0:00:12.9]} 97... Ke2 {[%clk 0:00:15.2]} 98. Nh2 {[%clk
0:00:13.5]} 98... Ke3 {[%clk 0:00:12.8]} 99. Nf1+ {[%clk 0:00:10.9]} 1/2-1/2

[Event "*** Qualifier 1: Titled Tuesday 3|2 Blitz"]
[Site "Chess.com"]
[Date "2017.04.04"]
[Round "4"]
[White "geeeeri"]
[Black "Rating-Schmating"]
[Result "1-0"]
[WhiteElo "2305"]
[BlackElo "2209"]
[TimeControl "180+2"]
[EndTime "13:46:12 PDT"]
[Termination "geeeeri won by resignation"]

1. e4 {[%clk 0:02:58.2]} 1... e6 {[%clk 0:02:56.6]} 2. d3 {[%clk 0:02:58.4]}
2... d5 {[%clk 0:02:57.5]} 3. Nd2 {[%clk 0:03:00.3]} 3... Nf6 {[%clk 0:02:58.1]}
4. Ngf3 {[%clk 0:03:01.9]} 4... Bc5 {[%clk 0:02:59.4]} 5. e5 {[%clk 0:03:00.4]}
5... Nfd7 {[%clk 0:03:00]} 6. d4 {[%clk 0:03:01.9]} 6... Be7 {[%clk 0:03:01.4]}
7. Bd3 {[%clk 0:03:03]} 7... c5 {[%clk 0:03:02.7]} 8. c3 {[%clk 0:03:04.6]} 8...
Nc6 {[%clk 0:03:03.8]} 9. O-O {[%clk 0:03:06]} 9... g5 {[%clk 0:03:04.5]} 10.
dxc5 {[%clk 0:03:07.4]} 10... g4 {[%clk 0:03:05.6]} 11. Nd4 {[%clk 0:03:08.9]}
11... Ncxe5 {[%clk 0:03:07]} 12. Bb5 {[%clk 0:03:09.7]} 12... Bxc5 {[%clk
0:03:03.1]} 13. f4 {[%clk 0:03:10.8]} 13... gxf3 {[%clk 0:03:02.3]} 14. Nxf3
{[%clk 0:03:11.9]} 14... Bd6 {[%clk 0:02:38]} 15. Nxe5 {[%clk 0:02:52.5]} 15...
Bxe5 {[%clk 0:02:36.6]} 16. Qh5 {[%clk 0:02:53.6]} 16... Bxd4+ {[%clk
0:02:31.6]} 17. cxd4 {[%clk 0:02:55.5]} 17... Qe7 {[%clk 0:02:32]} 18. Bg5
{[%clk 0:02:56.7]} 18... Qf8 {[%clk 0:02:31.6]} 19. Rae1 {[%clk 0:02:53.7]}
19... Qg7 {[%clk 0:02:21]} 20. Rxe6+ {[%clk 0:02:50.2]} 20... Kf8 {[%clk
0:02:21.4]} 21. Bh6 {[%clk 0:02:51.4]} 1-0

[Event "*** Qualifier 1: Titled Tuesday 3|2 Blitz"]
[Site "Chess.com"]
[Date "2017.04.04"]
[Round "4"]
[White "plouarzel"]
[Black "SergeiAza"]
[Result "0-1"]
[WhiteElo "2389"]
[BlackElo "2648"]
[TimeControl "180+2"]
[EndTime "13:49:24 PDT"]
[Termination "SergeiAza won by resignation"]

1. d4 {[%clk 0:03:02]} 1... Nf6 {[%clk 0:03:00.1]} 2. Nc3 {[%clk 0:03:02.9]}
2... d5 {[%clk 0:02:59.9]} 3. e4 {[%clk 0:03:04.1]} 3... dxe4 {[%clk 0:02:58.1]}
4. f3 {[%clk 0:03:05.4]} 4... exf3 {[%clk 0:02:50.9]} 5. Nxf3 {[%clk 0:03:07.3]}
5... e6 {[%clk 0:02:51]} 6. Bd3 {[%clk 0:03:08]} 6... c5 {[%clk 0:02:49]} 7.
dxc5 {[%clk 0:03:07.4]} 7... Bxc5 {[%clk 0:02:47.9]} 8. Qe2 {[%clk 0:03:08.7]}
8... Nc6 {[%clk 0:02:46.7]} 9. Bg5 {[%clk 0:03:02.8]} 9... h6 {[%clk 0:02:43.1]}
10. Bh4 {[%clk 0:03:00.8]} 10... Nd4 {[%clk 0:02:39.6]} 11. Nxd4 {[%clk
0:02:42.5]} 11... Qxd4 {[%clk 0:02:39.8]} 12. Bg3 {[%clk 0:02:27.3]} 12... Bd7
{[%clk 0:02:28]} 13. Nb5 {[%clk 0:02:00.8]} 13... Qxb2 {[%clk 0:02:17.6]} 14.
Nc7+ {[%clk 0:02:01.6]} 14... Ke7 {[%clk 0:02:16.9]} 15. Be5 {[%clk 0:01:59]}
15... Bd4 {[%clk 0:02:10.5]} 16. Bxf6+ {[%clk 0:01:31.1]} 16... gxf6 {[%clk
0:02:09.5]} 17. Rd1 {[%clk 0:01:31.5]} 17... Qc3+ {[%clk 0:02:07.6]} 18. Qd2
{[%clk 0:01:29.5]} 18... Qxc7 {[%clk 0:02:05]} 19. Qb4+ {[%clk 0:01:29.3]} 19...
Bc5 {[%clk 0:02:00.5]} 20. Qh4 {[%clk 0:01:27.9]} 20... Qe5+ {[%clk 0:01:58.7]}
21. Kf1 {[%clk 0:01:19.8]} 21... Bc6 {[%clk 0:01:57.5]} 22. Re1 {[%clk 0:01:20]}
22... Qd4 {[%clk 0:01:51.3]} 23. Qg3 {[%clk 0:01:12.4]} 23... Rhg8 {[%clk
0:01:47.5]} 24. Qc7+ {[%clk 0:01:13.5]} 24... Kf8 {[%clk 0:01:44.5]} 25. Re2
{[%clk 0:01:00.5]} 25... Bb6 {[%clk 0:01:36.9]} 26. Qxb6 {[%clk 0:00:51.1]}
26... axb6 {[%clk 0:01:35.3]} 0-1

[Event "*** Qualifier 1: Titled Tuesday 3|2 Blitz"]
[Site "Chess.com"]
[Date "2017.04.04"]
[Round "4"]
[White "IM_Michal_Luch"]
[Black "bancsoo"]
[Result "0-1"]
[WhiteElo "2443"]
[BlackElo "2618"]
[TimeControl "180+2"]
[EndTime "13:49:40 PDT"]
[Termination "bancsoo won by resignation"]

1. d4 {[%clk 0:03:02]} 1... d5 {[%clk 0:02:59.6]} 2. c4 {[%clk 0:03:01]} 2... e6
{[%clk 0:03:00.4]} 3. Nc3 {[%clk 0:03:01.5]} 3... c6 {[%clk 0:03:00.9]} 4. e4
{[%clk 0:03:01.8]} 4... Bb4 {[%clk 0:03:01]} 5. e5 {[%clk 0:02:58.3]} 5... Ne7
{[%clk 0:02:58.3]} 6. h4 {[%clk 0:02:56.2]} 6... dxc4 {[%clk 0:02:53.6]} 7. Bxc4
{[%clk 0:02:56.1]} 7... c5 {[%clk 0:02:54.8]} 8. Be3 {[%clk 0:02:50]} 8... Nbc6
{[%clk 0:02:48]} 9. dxc5 {[%clk 0:02:44.9]} 9... Qxd1+ {[%clk 0:02:48.1]} 10.
Rxd1 {[%clk 0:02:45.2]} 10... Nxe5 {[%clk 0:02:38.5]} 11. Bb5+ {[%clk
0:02:41.7]} 11... Bd7 {[%clk 0:02:38.2]} 12. Ke2 {[%clk 0:02:23.4]} 12... Bxc3
{[%clk 0:02:36.2]} 13. Bxd7+ {[%clk 0:02:23]} 13... Nxd7 {[%clk 0:02:37.1]} 14.
bxc3 {[%clk 0:02:24.8]} 14... Rc8 {[%clk 0:02:38.7]} 15. Rb1 {[%clk 0:02:22.1]}
15... Rc7 {[%clk 0:02:24.2]} 16. Nf3 {[%clk 0:02:15.6]} 16... Nd5 {[%clk
0:02:21.7]} 17. Bd4 {[%clk 0:02:16.5]} 17... f6 {[%clk 0:02:19.6]} 18. c4 {[%clk
0:01:56.8]} 18... Nf4+ {[%clk 0:02:20.3]} 19. Kd2 {[%clk 0:01:55.5]} 19... e5
{[%clk 0:02:20.4]} 20. Be3 {[%clk 0:01:52.9]} 20... Nxg2 {[%clk 0:02:19.8]} 21.
Rhg1 {[%clk 0:01:52.3]} 21... Nxe3 {[%clk 0:02:19.4]} 22. Kxe3 {[%clk
0:01:49.6]} 22... Nxc5 {[%clk 0:02:20.4]} 23. Rgd1 {[%clk 0:01:49]} 23... Ke7
{[%clk 0:02:19.3]} 24. Rd5 {[%clk 0:01:49.1]} 24... Rd8 {[%clk 0:02:18.3]} 25.
Nd2 {[%clk 0:01:47.8]} 25... Rxd5 {[%clk 0:02:13.8]} 26. cxd5 {[%clk 0:01:49.7]}
26... Kd6 {[%clk 0:02:15.3]} 27. Rd1 {[%clk 0:01:44.9]} 27... Kxd5 {[%clk
0:02:10.7]} 28. Ne4+ {[%clk 0:01:32.8]} 28... Ke6 {[%clk 0:02:11.5]} 29. Ng3
{[%clk 0:01:27.5]} 29... Rd7 {[%clk 0:02:06.9]} 30. Rc1 {[%clk 0:01:17.9]} 30...
b6 {[%clk 0:02:07.7]} 31. h5 {[%clk 0:01:15.9]} 31... Rd3+ {[%clk 0:02:07.7]}
32. Ke2 {[%clk 0:01:16.5]} 32... Ra3 {[%clk 0:02:09.6]} 33. Rc2 {[%clk
0:01:16.6]} 33... f5 {[%clk 0:02:10.5]} 34. Kf1 {[%clk 0:01:15.8]} 34... f4
{[%clk 0:02:11]} 35. Ne2 {[%clk 0:01:17.1]} 35... Kf5 {[%clk 0:02:10.8]} 36. Nc3
{[%clk 0:01:15.1]} 36... Kg4 {[%clk 0:02:07.3]} 37. Nb1 {[%clk 0:01:15.1]} 37...
Ra4 {[%clk 0:02:03.2]} 38. h6 {[%clk 0:01:16.3]} 38... gxh6 {[%clk 0:02:03.7]}
39. Nc3 {[%clk 0:01:17.6]} 39... Rc4 {[%clk 0:02:03.9]} 0-1

[Event "*** Qualifier 1: Titled Tuesday 3|2 Blitz"]
[Site "Chess.com"]
[Date "2017.04.04"]
[Round "4"]
[White "Alexander_Moskalenko"]
[Black "Keaton87"]
[Result "0-1"]
[WhiteElo "2618"]
[BlackElo "2499"]
[TimeControl "180+2"]
[EndTime "13:49:41 PDT"]
[Termination "Keaton87 won by resignation"]

1. e4 {[%clk 0:03:02]} 1... c5 {[%clk 0:03:00.5]} 2. Nf3 {[%clk 0:03:00.8]} 2...
d6 {[%clk 0:03:01.7]} 3. d3 {[%clk 0:03:02.7]} 3... Nc6 {[%clk 0:03:00.6]} 4. g3
{[%clk 0:03:01.6]} 4... g6 {[%clk 0:03:01.7]} 5. Nbd2 {[%clk 0:03:03.2]} 5...
Bg7 {[%clk 0:03:02.7]} 6. Bg2 {[%clk 0:03:03.8]} 6... e5 {[%clk 0:03:04.1]} 7.
O-O {[%clk 0:03:05.7]} 7... Nge7 {[%clk 0:03:05.2]} 8. c3 {[%clk 0:02:48.4]}
8... O-O {[%clk 0:03:05.8]} 9. a3 {[%clk 0:02:49.2]} 9... h6 {[%clk 0:03:05.7]}
10. b4 {[%clk 0:02:46.6]} 10... b6 {[%clk 0:03:06.6]} 11. Re1 {[%clk 0:02:38.4]}
11... Be6 {[%clk 0:03:06.9]} 12. b5 {[%clk 0:02:34.6]} 12... Na5 {[%clk
0:03:07.4]} 13. c4 {[%clk 0:02:36.5]} 13... f5 {[%clk 0:03:05]} 14. a4 {[%clk
0:02:32.1]} 14... f4 {[%clk 0:03:04.3]} 15. Nf1 {[%clk 0:02:26.8]} 15... g5
{[%clk 0:03:05.2]} 16. h3 {[%clk 0:02:28.3]} 16... Qd7 {[%clk 0:03:03.1]} 17. g4
{[%clk 0:02:26.3]} 17... Ng6 {[%clk 0:03:01.2]} 18. N3h2 {[%clk 0:02:27.6]}
18... Bf6 {[%clk 0:03:01.8]} 19. Bf3 {[%clk 0:02:19.2]} 19... Bd8 {[%clk
0:03:02.9]} 20. Be2 {[%clk 0:02:20.4]} 20... Bc7 {[%clk 0:03:04.1]} 21. f3
{[%clk 0:02:21.6]} 21... Kf7 {[%clk 0:03:04.9]} 22. Nd2 {[%clk 0:02:12.9]} 22...
Ke7 {[%clk 0:03:05.7]} 23. Nb3 {[%clk 0:02:14.3]} 23... Nxb3 {[%clk 0:03:03.3]}
24. Qxb3 {[%clk 0:02:16.2]} 24... a5 {[%clk 0:03:04.5]} 25. Rf1 {[%clk
0:02:01.3]} 25... Rh8 {[%clk 0:03:04.3]} 26. Rf2 {[%clk 0:01:58.9]} 26... Rh7
{[%clk 0:03:03.6]} 27. Bf1 {[%clk 0:02:00.4]} 27... Rah8 {[%clk 0:03:04.2]} 28.
Raa2 {[%clk 0:02:02.3]} 28... Kd8 {[%clk 0:03:03.3]} 29. Rad2 {[%clk 0:01:45.9]}
29... Kc8 {[%clk 0:03:04.5]} 30. Qc2 {[%clk 0:01:46.5]} 30... Bd8 {[%clk
0:03:05.8]} 31. Bb2 {[%clk 0:01:48.1]} 31... Kb7 {[%clk 0:03:05.9]} 32. Be2
{[%clk 0:01:48.7]} 32... h5 {[%clk 0:03:06.5]} 33. Bd1 {[%clk 0:01:49.9]} 33...
hxg4 {[%clk 0:03:06.7]} 34. hxg4 {[%clk 0:01:50.8]} 34... Rh3 {[%clk 0:03:05.4]}
35. Bc3 {[%clk 0:01:48.1]} 35... Qh7 {[%clk 0:03:05.1]} 36. Rg2 {[%clk
0:01:47.7]} 36... Rg3 {[%clk 0:03:01.9]} 37. Kf1 {[%clk 0:01:45]} 37... Qh3
{[%clk 0:03:01.5]} 38. Ke1 {[%clk 0:01:44.1]} 38... Nh4 {[%clk 0:02:59.9]} 39.
Rgf2 {[%clk 0:01:44.8]} 39... Rg1+ {[%clk 0:02:59.1]} 40. Nf1 {[%clk 0:01:45]}
40... Qh1 {[%clk 0:02:51.4]} 41. Qb2 {[%clk 0:01:40.6]} 41... Ng2+ {[%clk
0:02:52.4]} 42. Ke2 {[%clk 0:01:39.7]} 42... Ne3 {[%clk 0:02:52.2]} 43. Bxe5
{[%clk 0:00:46]} 43... Rxf1 {[%clk 0:02:44.4]} 0-1

[Event "*** Qualifier 1: Titled Tuesday 3|2 Blitz"]
[Site "Chess.com"]
[Date "2017.04.04"]
[Round "4"]
[White "silverback96"]
[Black "Schemato"]
[Result "0-1"]
[WhiteElo "2071"]
[BlackElo "2244"]
[TimeControl "180+2"]
[EndTime "13:49:59 PDT"]
[Termination "Schemato won by resignation"]

1. e4 {[%clk 0:03:02]} 1... e6 {[%clk 0:02:57.7]} 2. d4 {[%clk 0:02:59.5]} 2...
d5 {[%clk 0:02:58.6]} 3. Nd2 {[%clk 0:03:01.2]} 3... Be7 {[%clk 0:02:59.1]} 4.
Ngf3 {[%clk 0:03:01.3]} 4... Nf6 {[%clk 0:02:59.6]} 5. e5 {[%clk 0:03:02.1]}
5... Nfd7 {[%clk 0:03:00.8]} 6. Bd3 {[%clk 0:03:03.7]} 6... c5 {[%clk
0:03:01.4]} 7. c3 {[%clk 0:03:05.4]} 7... b6 {[%clk 0:03:02]} 8. Qe2 {[%clk
0:03:05.1]} 8... a5 {[%clk 0:03:02.5]} 9. Nf1 {[%clk 0:03:01.2]} 9... Ba6 {[%clk
0:03:02.1]} 10. Ng3 {[%clk 0:03:02.8]} 10... Bxd3 {[%clk 0:03:01.7]} 11. Qxd3
{[%clk 0:03:04.7]} 11... Nc6 {[%clk 0:02:57.2]} 12. h4 {[%clk 0:03:04.6]} 12...
h5 {[%clk 0:02:53.5]} 13. Bg5 {[%clk 0:03:03.7]} 13... Rc8 {[%clk 0:02:47.2]}
14. Bxe7 {[%clk 0:03:02.6]} 14... Qxe7 {[%clk 0:02:47.1]} 15. Ng5 {[%clk
0:02:59.1]} 15... cxd4 {[%clk 0:02:45.9]} 16. Qf3 {[%clk 0:02:57.3]} 16... Ncxe5
{[%clk 0:02:28.5]} 17. Qe2 {[%clk 0:02:57.2]} 17... dxc3 {[%clk 0:02:20.3]} 18.
bxc3 {[%clk 0:02:59.1]} 18... g6 {[%clk 0:02:06.5]} 19. O-O {[%clk 0:02:56.2]}
19... Rc4 {[%clk 0:01:56.3]} 20. f4 {[%clk 0:02:46.3]} 20... Ng4 {[%clk
0:01:54.9]} 21. f5 {[%clk 0:02:43.1]} 21... Nde5 {[%clk 0:01:08.4]} 22. fxe6
{[%clk 0:02:40.3]} 22... fxe6 {[%clk 0:01:05.1]} 23. Rab1 {[%clk 0:02:35.2]}
23... Rf8 {[%clk 0:01:00]} 24. Rxb6 {[%clk 0:02:33.4]} 24... Qc5+ {[%clk
0:00:51.4]} 25. Kh1 {[%clk 0:02:26.7]} 25... Qxb6 {[%clk 0:00:52]} 26. Rxf8+
{[%clk 0:02:23.2]} 26... Kxf8 {[%clk 0:00:53.1]} 27. Nf1 {[%clk 0:02:17.2]}
27... Nf2+ {[%clk 0:00:50.1]} 28. Kh2 {[%clk 0:02:18.3]} 28... Rxh4+ {[%clk
0:00:43.5]} 29. Kg3 {[%clk 0:02:18.3]} 29... Rg4+ {[%clk 0:00:43.6]} 30. Kh2
{[%clk 0:02:19.8]} 30... Rxg5 {[%clk 0:00:40.9]} 31. Ne3 {[%clk 0:02:10.8]}
31... Neg4+ {[%clk 0:00:35.7]} 32. Nxg4 {[%clk 0:02:12.1]} 32... Nxg4+ {[%clk
0:00:37.1]} 33. Kh1 {[%clk 0:02:09.4]} 33... Qb1+ {[%clk 0:00:34.6]} 0-1

[Event "*** Qualifier 1: Titled Tuesday 3|2 Blitz"]
[Site "Chess.com"]
[Date "2017.04.04"]
[Round "4"]
[White "chipmunknau"]
[Black "gmcorrales"]
[Result "0-1"]
[WhiteElo "2414"]
[BlackElo "2579"]
[TimeControl "180+2"]
[EndTime "13:50:06 PDT"]
[Termination "gmcorrales won by resignation"]

1. d4 {[%clk 0:03:02]} 1... Nf6 {[%clk 0:02:41.1]} 2. Nf3 {[%clk 0:03:02.5]}
2... g6 {[%clk 0:02:40.6]} 3. c4 {[%clk 0:03:03]} 3... Bg7 {[%clk 0:02:40]} 4.
Nc3 {[%clk 0:03:03.3]} 4... d5 {[%clk 0:02:40.8]} 5. cxd5 {[%clk 0:03:01.7]}
5... Nxd5 {[%clk 0:02:42.7]} 6. Qb3 {[%clk 0:03:02.5]} 6... Nxc3 {[%clk
0:02:42.3]} 7. bxc3 {[%clk 0:03:04.4]} 7... O-O {[%clk 0:02:43.5]} 8. Bf4 {[%clk
0:02:59.5]} 8... c5 {[%clk 0:02:42.7]} 9. e3 {[%clk 0:03:00.2]} 9... Nc6 {[%clk
0:02:43]} 10. Be2 {[%clk 0:02:58.1]} 10... cxd4 {[%clk 0:02:37.4]} 11. exd4
{[%clk 0:02:56.8]} 11... Na5 {[%clk 0:02:35.9]} 12. Qb4 {[%clk 0:02:48.9]} 12...
Bg4 {[%clk 0:02:36]} 13. O-O {[%clk 0:02:45.8]} 13... Rc8 {[%clk 0:02:36.6]} 14.
h3 {[%clk 0:02:45.4]} 14... Bxf3 {[%clk 0:02:36.7]} 15. Bxf3 {[%clk 0:02:47.3]}
15... b6 {[%clk 0:02:36.3]} 16. Rfe1 {[%clk 0:02:45]} 16... e6 {[%clk
0:02:37.3]} 17. Rac1 {[%clk 0:02:43.8]} 17... Qd7 {[%clk 0:02:36.8]} 18. Red1
{[%clk 0:02:38.5]} 18... Rc4 {[%clk 0:02:36.6]} 19. Qa3 {[%clk 0:02:35.5]} 19...
Rfc8 {[%clk 0:02:35.5]} 20. Be2 {[%clk 0:02:32.2]} 20... Ra4 {[%clk 0:02:34]}
21. Qb2 {[%clk 0:02:29.1]} 21... Nc4 {[%clk 0:02:35.1]} 22. Qb3 {[%clk
0:02:25.7]} 22... Ra3 {[%clk 0:02:35.4]} 23. Qb1 {[%clk 0:02:25.9]} 23... Qa4
{[%clk 0:02:35.2]} 24. Bd3 {[%clk 0:02:16.5]} 24... Rxa2 {[%clk 0:02:31.5]} 25.
Bc2 {[%clk 0:02:03.9]} 25... Qa3 {[%clk 0:02:30.4]} 26. Qb5 {[%clk 0:02:01.5]}
26... Qe7 {[%clk 0:02:17]} 27. Bb3 {[%clk 0:01:39.2]} 27... Ra5 {[%clk
0:02:17.1]} 28. Qb4 {[%clk 0:01:40.5]} 28... Qf6 {[%clk 0:01:49.7]} 29. Bd6
{[%clk 0:01:23.3]} 29... Nxd6 {[%clk 0:01:42.9]} 30. Qxd6 {[%clk 0:01:25.2]}
30... Qd8 {[%clk 0:01:39.8]} 31. Qf4 {[%clk 0:01:22.4]} 31... Ra3 {[%clk
0:01:39.7]} 32. Rb1 {[%clk 0:00:38.1]} 32... Rxc3 {[%clk 0:01:38.7]} 0-1